{"text_format":"1","workbook":"xlsx","n_sheets":3,"sheets":["Feuil1","Feuil2","Feuil3"],"not_rendered":{"charts":0,"images":1,"macros":1,"external_links":0,"defined_names":4,"comments":0,"pivot_tables":0},"unopened":[],"bounds":{"document_bytes":16777216,"sheet_cells":100000,"rows_first":2000,"rows_last":500,"rows_between":2000,"halvings":0,"cell_chars":16384,"cell_head_chars":4096},"cells_cut":0,"cells_raw":0,"read":"whole","date_system":"1900"}

{"sheet":"Feuil1","index":0,"n_rows":98,"n_cols":11,"rows_kept":98,"cut":false,"hidden":false,"merged":[[0,3,0,7]]}
[null,null,null,"Fichier, Enregistrer, mettre un nom pour le fichier et Sauver",null,null,null,null,null,"Total",{"$f":"SUM(G:G)","v":0}]
["Département","Ouvrier","Date","Descriptions","Quantitée","Prix Unitaire","Total","Fournisseur","Références"]
[null,null,null,null,null,null,{"$f":"IF(ISBLANK(E3),\" \",E3*F3)","v":" "}]
[null,null,null,null,null,null," "]
[null,null,null,null,null,null," "]
[null,null,null,null,null,null," "]
[null,null,null,null,null,null," "]
[null,null,null,null,null,null," "]
[null,null,null,null,null,null," "]
[null,null,null,null,null,null," "]
[null,null,null,null,null,null," "]
[null,null,null,null,null,null," "]
[null,null,null,null,null,null," "]
[null,null,null,null,null,null," "]
[null,null,null,null,null,null," "]
[null,null,null,null,null,null," "]
[null,null,null,null,null,null," "]
[null,null,null,null,null,null," "]
[null,null,null,null,null,null," "]
[null,null,null,null,null,null," "]
[null,null,null,null,null,null," "]
[null,null,null,null,null,null," "]
[null,null,null,null,null,null," "]
[null,null,null,null,null,null," "]
[null,null,null,null,null,null," "]
[null,null,null,null,null,null," "]
[null,null,null,null,null,null," "]
[null,null,null,null,null,null," "]
[null,null,null,null,null,null," "]
[null,null,null,null,null,null," "]
[null,null,null,null,null,null," "]
[null,null,null,null,null,null," "]
[null,null,null,null,null,null," "]
[null,null,null,null,null,null," "]
[null,null,null,null,null,null," "]
[null,null,null,null,null,null," "]
[null,null,null,null,null,null," "]
[null,null,null,null,null,null," "]
[null,null,null,null,null,null," "]
[null,null,null,null,null,null," "]
[null,null,null,null,null,null," "]
[null,null,null,null,null,null," "]
[null,null,null,null,null,null," "]
[null,null,null,null,null,null," "]
[null,null,null,null,null,null," "]
[null,null,null,null,null,null," "]
[null,null,null,null,null,null," "]
[null,null,null,null,null,null," "]
[null,null,null,null,null,null," "]
[null,null,null,null,null,null," "]
[null,null,null,null,null,null," "]
[null,null,null,null,null,null," "]
[null,null,null,null,null,null," "]
[null,null,null,null,null,null," "]
[null,null,null,null,null,null," "]
[null,null,null,null,null,null," "]
[null,null,null,null,null,null," "]
[null,null,null,null,null,null," "]
[null,null,null,null,null,null," "]
[null,null,null,null,null,null," "]
[null,null,null,null,null,null," "]
[null,null,null,null,null,null," "]
[null,null,null,null,null,null," "]
[null,null,null,null,null,null," "]
[null,null,null,null,null,null," "]
[null,null,null,null,null,null,{"$f":"IF(ISBLANK(E66),\" \",E66*F66)","v":" "}]
[null,null,null,null,null,null," "]
[null,null,null,null,null,null," "]
[null,null,null,null,null,null," "]
[null,null,null,null,null,null," "]
[null,null,null,null,null,null," "]
[null,null,null,null,null,null," "]
[null,null,null,null,null,null," "]
[null,null,null,null,null,null," "]
[null,null,null,null,null,null," "]
[null,null,null,null,null,null," "]
[null,null,null,null,null,null," "]
[null,null,null,null,null,null," "]
[null,null,null,null,null,null," "]
[null,null,null,null,null,null," "]
[null,null,null,null,null,null," "]
[null,null,null,null,null,null," "]
[null,null,null,null,null,null," "]
[null,null,null,null,null,null," "]
[null,null,null,null,null,null," "]
[null,null,null,null,null,null," "]
[null,null,null,null,null,null," "]
[null,null,null,null,null,null," "]
[null,null,null,null,null,null," "]
[null,null,null,null,null,null," "]
[null,null,null,null,null,null," "]
[null,null,null,null,null,null," "]
[null,null,null,null,null,null," "]
[null,null,null,null,null,null," "]
[null,null,null,null,null,null," "]
[null,null,null,null,null,null," "]
[null,null,null,null,null,null," "]
[null,null,null,null,null,null," "]

{"sheet":"Feuil2","index":1,"n_rows":11,"n_cols":1,"rows_kept":11,"cut":false,"hidden":false,"merged":[]}
[]
["Anuba"]
["lame de cutter"]
["Chevilles de 6/35"]
["vis 4/30"]
[]
[]
["Cipac"]
["Lecot"]
["Clabats"]
["Clabots"]

{"sheet":"Feuil3","index":2,"n_rows":0,"n_cols":0,"rows_kept":0,"cut":false,"hidden":false,"merged":[]}